[Event "*** Titled Tuesday Blitz"]
[Site "Chess.com"]
[Date "2021.04.27"]
[Round "4"]
[White "poppy73"]
[Black "SanchezKelvin"]
[Result "1-0"]
[WhiteElo "2179"]
[BlackElo "196"]
[TimeControl "180+1"]
[EndTime "10:41:10 PDT"]
[Termination "poppy73 won by resignation"]

1. e4 {[%clk 0:03:00.9]} 1... e5 {[%clk 0:02:59.9]} 2. Nf3 {[%clk 0:02:57.3]}
2... Nc6 {[%clk 0:03:00.2]} 3. Bb5 {[%clk 0:02:52.7]} 3... a6 {[%clk 0:03:00.1]}
4. Ba4 {[%clk 0:02:52.8]} 4... b5 {[%clk 0:02:59.9]} 5. Bb3 {[%clk 0:02:52.2]}
5... Nf6 {[%clk 0:03:00.8]} 6. O-O {[%clk 0:02:50.5]} 6... Nxe4 {[%clk
0:03:00.9]} 7. Re1 {[%clk 0:02:36.3]} 7... Nd6 {[%clk 0:03:00.8]} 8. d4 {[%clk
0:02:28.9]} 8... e4 {[%clk 0:02:47.2]} 9. Nc3 {[%clk 0:02:13.8]} 9... Be7 {[%clk
0:02:42.5]} 10. Nxe4 {[%clk 0:02:13.2]} 10... Nxe4 {[%clk 0:02:42.7]} 11. Rxe4
{[%clk 0:02:14.1]} 11... d5 {[%clk 0:02:42.7]} 12. Re1 {[%clk 0:02:07.5]} 12...
O-O {[%clk 0:02:42.2]} 13. h3 {[%clk 0:02:02.2]} 13... Bf6 {[%clk 0:02:40.1]}
14. c3 {[%clk 0:02:00.8]} 14... Bf5 {[%clk 0:02:37.4]} 15. Bf4 {[%clk
0:02:00.2]} 15... Ne7 {[%clk 0:02:33]} 16. Ne5 {[%clk 0:01:51.2]} 16... Ng6
{[%clk 0:02:27.4]} 17. Bg3 {[%clk 0:01:44.8]} 17... Re8 {[%clk 0:02:13.6]} 18.
Bc2 {[%clk 0:01:32.7]} 18... Bxc2 {[%clk 0:02:07.6]} 19. Qxc2 {[%clk 0:01:33.6]}
19... c5 {[%clk 0:01:57.9]} 20. Nxg6 {[%clk 0:01:29.3]} 20... hxg6 {[%clk
0:01:55.5]} 21. dxc5 {[%clk 0:01:28.9]} 21... d4 {[%clk 0:01:51.4]} 22. cxd4
{[%clk 0:01:26.2]} 22... Qxd4 {[%clk 0:01:50]} 23. Rxe8+ {[%clk 0:01:10.2]}
23... Rxe8 {[%clk 0:01:47.8]} 24. c6 {[%clk 0:01:10.1]} 24... Rc8 {[%clk
0:01:36.1]} 25. Rd1 {[%clk 0:01:04]} 25... Qxb2 {[%clk 0:01:30.7]} 26. Qxb2
{[%clk 0:01:03.5]} 26... Bxb2 {[%clk 0:01:30.8]} 27. c7 {[%clk 0:01:01.7]} 27...
Bf6 {[%clk 0:01:30.4]} 28. Kh2 {[%clk 0:00:42.8]} 28... Kf8 {[%clk 0:01:29.9]}
29. Rd6 {[%clk 0:00:38.6]} 29... a5 {[%clk 0:01:07.9]} 30. Rb6 {[%clk
0:00:37.2]} 30... Ke7 {[%clk 0:01:04.5]} 31. Rxb5 {[%clk 0:00:34.3]} 31... Bc3
{[%clk 0:01:03.7]} 32. Rb8 {[%clk 0:00:25.1]} 32... Kd7 {[%clk 0:01:03.2]} 33.
a4 {[%clk 0:00:24.1]} 33... Bb4 {[%clk 0:01:03]} 34. Kg1 {[%clk 0:00:23.5]}
34... g5 {[%clk 0:01:01.5]} 35. Kf1 {[%clk 0:00:23.4]} 35... f5 {[%clk
0:00:56.7]} 36. Be5 {[%clk 0:00:20.1]} 36... Be7 {[%clk 0:00:50.3]} 37. Ke2
{[%clk 0:00:18.7]} 37... Bf6 {[%clk 0:00:47.7]} 38. Bxf6 {[%clk 0:00:14.3]}
38... gxf6 {[%clk 0:00:47.5]} 39. Rb5 {[%clk 0:00:11.3]} 39... Rxc7 {[%clk
0:00:41.3]} 40. Rxf5 {[%clk 0:00:11.2]} 40... Rc2+ {[%clk 0:00:37.9]} 41. Kd3
{[%clk 0:00:10.7]} 41... Ra2 {[%clk 0:00:36.5]} 42. Rxf6 {[%clk 0:00:09.8]}
42... Rxa4 {[%clk 0:00:35.6]} 43. Rf5 {[%clk 0:00:08.5]} 43... g4 {[%clk
0:00:35.9]} 44. hxg4 {[%clk 0:00:08.1]} 44... Rxg4 {[%clk 0:00:34.8]} 45. Rxa5
{[%clk 0:00:07.7]} 45... Rxg2 {[%clk 0:00:34.6]} 46. Ke3 {[%clk 0:00:07.8]}
46... Ke6 {[%clk 0:00:34.4]} 47. Kf3 {[%clk 0:00:04.8]} 47... Rg1 {[%clk
0:00:34.6]} 48. Ke4 {[%clk 0:00:04.5]} 48... Re1+ {[%clk 0:00:33.7]} 49. Kf4
{[%clk 0:00:04.6]} 49... Kf6 {[%clk 0:00:34]} 50. Ra6+ {[%clk 0:00:04.8]} 50...
Kf7 {[%clk 0:00:34.5]} 51. Kf5 {[%clk 0:00:04.3]} 51... Rb1 {[%clk 0:00:32.5]}
52. Ra7+ {[%clk 0:00:03.6]} 52... Kf8 {[%clk 0:00:32.9]} 53. f4 {[%clk
0:00:03.8]} 53... Rb6 {[%clk 0:00:32.5]} 54. Rc7 {[%clk 0:00:02.7]} 54... Ra6
{[%clk 0:00:32.2]} 55. Rc5 {[%clk 0:00:02.9]} 55... Kf7 {[%clk 0:00:31.7]} 56.
Re5 {[%clk 0:00:03.4]} 56... Rf6+ {[%clk 0:00:31.1]} 57. Ke4 {[%clk 0:00:03.1]}
57... Ra6 {[%clk 0:00:32]} 58. Rc5 {[%clk 0:00:02.9]} 58... Kf6 {[%clk
0:00:31.3]} 59. Rc8 {[%clk 0:00:02.2]} 59... Ra4+ {[%clk 0:00:30.7]} 60. Kf3
{[%clk 0:00:02.6]} 60... Kf5 {[%clk 0:00:31.1]} 61. Rc5+ {[%clk 0:00:02.1]}
61... Kf6 {[%clk 0:00:31.2]} 62. Kg4 {[%clk 0:00:03]} 62... Ra6 {[%clk
0:00:30.3]} 63. Rf5+ {[%clk 0:00:03]} 63... Kg6 {[%clk 0:00:30.5]} 64. Rg5+
{[%clk 0:00:03.3]} 64... Kf6 {[%clk 0:00:30.8]} 65. Rh5 {[%clk 0:00:03.7]} 65...
Ra1 {[%clk 0:00:29.8]} 66. Rh6+ {[%clk 0:00:03.7]} 66... Kg7 {[%clk 0:00:30.3]}
67. Rb6 {[%clk 0:00:03.8]} 67... Ra5 {[%clk 0:00:30.5]} 68. f5 {[%clk 0:00:03]}
68... Kf7 {[%clk 0:00:30.9]} 69. Rb7+ {[%clk 0:00:02.7]} 69... Kf6 {[%clk
0:00:30.7]} 70. Rb6+ {[%clk 0:00:03.1]} 70... Kf7 {[%clk 0:00:29.9]} 71. Kg5
{[%clk 0:00:03.5]} 71... Ra1 {[%clk 0:00:29.6]} 72. Rb7+ {[%clk 0:00:03.7]}
72... Kf8 {[%clk 0:00:29.6]} 73. Kg6 {[%clk 0:00:04.1]} 73... Ra6+ {[%clk
0:00:21.8]} 74. f6 {[%clk 0:00:03.8]} 74... Ra8 {[%clk 0:00:22.1]} 75. Rf7+
{[%clk 0:00:03.5]} 75... Kg8 {[%clk 0:00:21.9]} 76. Rg7+ {[%clk 0:00:03.9]}
76... Kf8 {[%clk 0:00:21.8]} 77. Rh7 {[%clk 0:00:04.2]} 77... Kg8 {[%clk
0:00:22]} 78. f7+ {[%clk 0:00:04.2]} 1-0

[Event "*** Titled Tuesday Blitz"]
[Site "Chess.com"]
[Date "2021.04.27"]
[Round "4"]
[White "Kale36"]
[Black "dodorox"]
[Result "1/2-1/2"]
[WhiteElo "2268"]
[BlackElo "2127"]
[TimeControl "180+1"]
[EndTime "10:41:10 PDT"]
[Termination "Game drawn - insufficient material"]

1. d4 {[%clk 0:03:00.9]} 1... Nf6 {[%clk 0:02:59.2]} 2. Nc3 {[%clk 0:03:01]}
2... d5 {[%clk 0:02:57.2]} 3. Bg5 {[%clk 0:03:00.8]} 3... e6 {[%clk 0:02:53.3]}
4. e4 {[%clk 0:03:00.4]} 4... dxe4 {[%clk 0:02:52.5]} 5. Nxe4 {[%clk 0:03:00.6]}
5... Be7 {[%clk 0:02:52.6]} 6. Bxf6 {[%clk 0:03:01.1]} 6... gxf6 {[%clk
0:02:53.2]} 7. g3 {[%clk 0:02:56.8]} 7... f5 {[%clk 0:02:53.8]} 8. Nc3 {[%clk
0:02:56.5]} 8... Bf6 {[%clk 0:02:46.1]} 9. Nge2 {[%clk 0:02:55.3]} 9... Bd7
{[%clk 0:02:35.3]} 10. Bg2 {[%clk 0:02:50.2]} 10... Bc6 {[%clk 0:02:35.5]} 11.
d5 {[%clk 0:02:50.6]} 11... exd5 {[%clk 0:02:17.3]} 12. Nxd5 {[%clk 0:02:46.2]}
12... Bxb2 {[%clk 0:01:50.6]} 13. Rb1 {[%clk 0:02:45.6]} 13... Bg7 {[%clk
0:01:51.1]} 14. O-O {[%clk 0:02:35.8]} 14... O-O {[%clk 0:01:51.5]} 15. Nef4
{[%clk 0:02:35.7]} 15... Nd7 {[%clk 0:01:41.8]} 16. Qh5 {[%clk 0:02:25.4]} 16...
Nf6 {[%clk 0:01:20.4]} 17. Qxf5 {[%clk 0:02:22.7]} 17... Nxd5 {[%clk 0:01:18]}
18. Nxd5 {[%clk 0:02:20.3]} 18... Bxd5 {[%clk 0:01:02]} 19. Bxd5 {[%clk
0:02:18]} 19... Qf6 {[%clk 0:00:55.1]} 20. Qxf6 {[%clk 0:02:13.4]} 20... Bxf6
{[%clk 0:00:54.6]} 21. Rxb7 {[%clk 0:02:13.9]} 21... Rfd8 {[%clk 0:00:39.7]} 22.
c4 {[%clk 0:02:12]} 22... Be5 {[%clk 0:00:28.7]} 23. Re1 {[%clk 0:02:04.3]}
23... Bd6 {[%clk 0:00:27.6]} 24. Re3 {[%clk 0:01:52]} 24... Rab8 {[%clk
0:00:20.5]} 25. Rxb8 {[%clk 0:01:35.8]} 25... Rxb8 {[%clk 0:00:20]} 26. Rf3
{[%clk 0:01:36.4]} 26... Rf8 {[%clk 0:00:17.9]} 27. Kf1 {[%clk 0:01:31.1]} 27...
Kg7 {[%clk 0:00:17.9]} 28. Ke2 {[%clk 0:01:30.7]} 28... f6 {[%clk 0:00:17.6]}
29. Re3 {[%clk 0:01:28.6]} 29... Rb8 {[%clk 0:00:16.7]} 30. Re4 {[%clk 0:01:14]}
30... Rb2+ {[%clk 0:00:16]} 31. Kf3 {[%clk 0:01:14.3]} 31... Rxa2 {[%clk
0:00:15.2]} 32. Rg4+ {[%clk 0:01:14.5]} 32... Kf8 {[%clk 0:00:13.9]} 33. Rg8+
{[%clk 0:01:13.6]} 33... Ke7 {[%clk 0:00:14.4]} 34. Rg7+ {[%clk 0:01:14.2]}
34... Kd8 {[%clk 0:00:13.9]} 35. Rxh7 {[%clk 0:01:14.4]} 35... Bc5 {[%clk
0:00:11.7]} 36. Kg4 {[%clk 0:01:00.2]} 36... Rxf2 {[%clk 0:00:11.6]} 37. h4
{[%clk 0:01:00.8]} 37... a5 {[%clk 0:00:11.1]} 38. Rh8+ {[%clk 0:00:53.6]} 38...
Kd7 {[%clk 0:00:10.5]} 39. Ra8 {[%clk 0:00:54.2]} 39... Bb4 {[%clk 0:00:06.1]}
40. h5 {[%clk 0:00:53.5]} 40... Kd6 {[%clk 0:00:04.9]} 41. Ra6+ {[%clk
0:00:52.4]} 41... Ke5 {[%clk 0:00:04.7]} 42. h6 {[%clk 0:00:48]} 42... Rh2
{[%clk 0:00:04.4]} 43. Rc6 {[%clk 0:00:39.9]} 43... Rxh6 {[%clk 0:00:03.6]} 44.
Rxc7 {[%clk 0:00:40.2]} 44... Rh2 {[%clk 0:00:01.9]} 45. Ra7 {[%clk 0:00:38.8]}
45... f5+ {[%clk 0:00:01.1]} 46. Kg5 {[%clk 0:00:38.9]} 46... Bd2+ {[%clk
0:00:01.7]} 47. Kg6 {[%clk 0:00:36.9]} 47... Rh6+ {[%clk 0:00:02.1]} 48. Kg7
{[%clk 0:00:37.5]} 48... Rh3 {[%clk 0:00:01.7]} 49. Re7+ {[%clk 0:00:32.4]}
49... Kd4 {[%clk 0:00:01.8]} 50. Re2 {[%clk 0:00:31.6]} 50... Rxg3+ {[%clk
0:00:01.9]} 51. Kf6 {[%clk 0:00:32.1]} 51... Kc3 {[%clk 0:00:02.1]} 52. Kxf5
{[%clk 0:00:30.9]} 52... Rg1 {[%clk 0:00:01.5]} 53. c5 {[%clk 0:00:30.7]} 53...
a4 {[%clk 0:00:01.5]} 54. c6 {[%clk 0:00:30.9]} 54... Rf1+ {[%clk 0:00:02]} 55.
Ke6 {[%clk 0:00:29.3]} 55... Kd3 {[%clk 0:00:02.3]} 56. c7 {[%clk 0:00:27.4]}
56... Rc1 {[%clk 0:00:02]} 57. Re4 {[%clk 0:00:09.4]} 57... Rxc7 {[%clk
0:00:02.2]} 58. Rxa4 {[%clk 0:00:09.9]} 58... Rc1 {[%clk 0:00:01.4]} 59. Ra3+
{[%clk 0:00:09.3]} 59... Kc2 {[%clk 0:00:01.4]} 60. Be4+ {[%clk 0:00:09]} 60...
Kb2 {[%clk 0:00:01.8]} 61. Ra6 {[%clk 0:00:07.9]} 61... Re1 {[%clk 0:00:02.2]}
62. Kf5 {[%clk 0:00:08]} 62... Bc3 {[%clk 0:00:02.6]} 63. Rb6+ {[%clk
0:00:07.9]} 63... Ka3 {[%clk 0:00:03.1]} 64. Bd5 {[%clk 0:00:06.8]} 64... Re5+
{[%clk 0:00:02.2]} 65. Kf4 {[%clk 0:00:06.8]} 65... Rxd5 {[%clk 0:00:02.6]} 66.
Rb7 {[%clk 0:00:07.2]} 66... Rd4+ {[%clk 0:00:03]} 67. Ke3 {[%clk 0:00:06.9]}
67... Rd1 {[%clk 0:00:03.4]} 68. Rb8 {[%clk 0:00:06.6]} 68... Bb4 {[%clk
0:00:03.8]} 69. Ra8+ {[%clk 0:00:06.6]} 69... Kb3 {[%clk 0:00:03.8]} 70. Rc8
{[%clk 0:00:07.5]} 70... Rb1 {[%clk 0:00:03.3]} 71. Ke2 {[%clk 0:00:07.7]} 71...
Rb2+ {[%clk 0:00:03.6]} 72. Kd3 {[%clk 0:00:07.6]} 72... Rh2 {[%clk 0:00:03.8]}
73. Rc6 {[%clk 0:00:07.7]} 73... Rh3+ {[%clk 0:00:04]} 74. Ke4 {[%clk
0:00:08.6]} 74... Rc3 {[%clk 0:00:04.3]} 75. Kd5 {[%clk 0:00:09.5]} 75... Rd3+
{[%clk 0:00:04]} 76. Ke4 {[%clk 0:00:09.6]} 76... Rd1 {[%clk 0:00:04.4]} 77. Re6
{[%clk 0:00:09.3]} 77... Re1+ {[%clk 0:00:04.3]} 78. Kf5 {[%clk 0:00:10.2]}
78... Rf1+ {[%clk 0:00:04.2]} 79. Ke4 {[%clk 0:00:10.2]} 79... Re1+ {[%clk
0:00:04.4]} 80. Kd5 {[%clk 0:00:11.1]} 80... Rxe6 {[%clk 0:00:04.7]} 81. Kxe6
{[%clk 0:00:11.3]} 1/2-1/2

[Event "*** Titled Tuesday Blitz"]
[Site "Chess.com"]
[Date "2021.04.27"]
[Round "4"]
[White "Korchmar_Vasiliy"]
[Black "atbenina64"]
[Result "1-0"]
[WhiteElo "2701"]
[BlackElo "2512"]
[TimeControl "180+1"]
[EndTime "10:41:17 PDT"]
[Termination "Korchmar_Vasiliy won on time"]

1. d4 {[%clk 0:03:00.9]} 1... Nf6 {[%clk 0:02:59.2]} 2. Nf3 {[%clk 0:03:01.1]}
2... g6 {[%clk 0:02:58.8]} 3. Bg5 {[%clk 0:03:01.1]} 3... Bg7 {[%clk 0:02:58.7]}
4. Nbd2 {[%clk 0:03:01.7]} 4... O-O {[%clk 0:02:58.3]} 5. e3 {[%clk 0:03:02.2]}
5... d5 {[%clk 0:02:52.3]} 6. Be2 {[%clk 0:03:02]} 6... c5 {[%clk 0:02:51.1]} 7.
c3 {[%clk 0:03:02.3]} 7... cxd4 {[%clk 0:02:51]} 8. exd4 {[%clk 0:03:01.9]} 8...
Nc6 {[%clk 0:02:51.8]} 9. O-O {[%clk 0:03:01.6]} 9... Bf5 {[%clk 0:02:51.8]} 10.
Re1 {[%clk 0:02:58.6]} 10... Qc7 {[%clk 0:02:41.5]} 11. Bf1 {[%clk 0:02:48.3]}
11... Rfe8 {[%clk 0:02:37.3]} 12. Ne5 {[%clk 0:02:34.1]} 12... Nxe5 {[%clk
0:02:26.5]} 13. dxe5 {[%clk 0:02:35]} 13... Nd7 {[%clk 0:02:20.8]} 14. Nf3
{[%clk 0:02:04.2]} 14... Nxe5 {[%clk 0:02:04.7]} 15. Nd4 {[%clk 0:01:50.3]}
15... Bg4 {[%clk 0:01:20.3]} 16. f3 {[%clk 0:01:48.1]} 16... Bd7 {[%clk
0:01:10.8]} 17. Bf4 {[%clk 0:01:48.2]} 17... f6 {[%clk 0:01:05.8]} 18. Qb3
{[%clk 0:01:01.4]} 18... Bc6 {[%clk 0:00:44.4]} 19. Ne6 {[%clk 0:00:43.4]} 19...
Qd6 {[%clk 0:00:39.6]} 20. Nxg7 {[%clk 0:00:42.7]} 20... Kxg7 {[%clk 0:00:39.7]}
21. Kh1 {[%clk 0:00:37.8]} 21... g5 {[%clk 0:00:27.9]} 22. Bg3 {[%clk
0:00:37.5]} 22... h5 {[%clk 0:00:28.4]} 23. h3 {[%clk 0:00:35.6]} 23... g4
{[%clk 0:00:21.3]} 24. fxg4 {[%clk 0:00:29.7]} 24... hxg4 {[%clk 0:00:22.2]} 25.
h4 {[%clk 0:00:30.1]} 25... Rh8 {[%clk 0:00:19.4]} 26. Re3 {[%clk 0:00:29.2]}
26... Rh5 {[%clk 0:00:19.6]} 27. Rae1 {[%clk 0:00:26.7]} 27... Rah8 {[%clk
0:00:20.2]} 28. Kg1 {[%clk 0:00:25.9]} 28... Qc5 {[%clk 0:00:18.7]} 29. Bf2
{[%clk 0:00:22.5]} 29... Qd6 {[%clk 0:00:17.9]} 30. Bg3 {[%clk 0:00:16]} 30...
Qc5 {[%clk 0:00:16.3]} 31. Qc2 {[%clk 0:00:14]} 31... Ng6 {[%clk 0:00:08.8]} 32.
Qf2 {[%clk 0:00:13]} 32... e5 {[%clk 0:00:08]} 33. Bd3 {[%clk 0:00:06.7]} 33...
Rf8 {[%clk 0:00:06.7]} 34. Bf5 {[%clk 0:00:06.5]} 34... Qd6 {[%clk 0:00:05.4]}
35. Bxg4 {[%clk 0:00:06.5]} 35... Rh6 {[%clk 0:00:04.5]} 36. h5 {[%clk
0:00:07.1]} 36... Ne7 {[%clk 0:00:03.6]} 37. Bd1 {[%clk 0:00:05.3]} 37... Bd7
{[%clk 0:00:02.1]} 38. Rxe5 {[%clk 0:00:05.2]} 38... fxe5 {[%clk 0:00:02.3]} 39.
Bxe5+ {[%clk 0:00:05.6]} 39... Qxe5 {[%clk 0:00:02.9]} 40. Rxe5 {[%clk
0:00:04.5]} 40... Rxf2 {[%clk 0:00:02.7]} 41. Kxf2 {[%clk 0:00:05.4]} 41... Nc6
{[%clk 0:00:02.3]} 42. Rxd5 {[%clk 0:00:04.9]} 42... Be6 {[%clk 0:00:02.8]} 43.
Rd3 {[%clk 0:00:03.6]} 43... Rf6+ {[%clk 0:00:03.7]} 44. Kg1 {[%clk 0:00:03.3]}
44... Ne5 {[%clk 0:00:04.2]} 45. Re3 {[%clk 0:00:03.4]} 45... Nc4 {[%clk
0:00:04.4]} 46. Rg3+ {[%clk 0:00:03.6]} 46... Kh6 {[%clk 0:00:04.9]} 47. b3
{[%clk 0:00:03.6]} 47... Ne5 {[%clk 0:00:05]} 48. Re3 {[%clk 0:00:03.1]} 48...
Nc6 {[%clk 0:00:05.2]} 49. g4 {[%clk 0:00:02.5]} 49... Bd7 {[%clk 0:00:03.9]}
50. Kg2 {[%clk 0:00:02.6]} 50... Kg5 {[%clk 0:00:03.9]} 51. Kg3 {[%clk
0:00:02.9]} 51... Rf4 {[%clk 0:00:03.6]} 52. Rd3 {[%clk 0:00:02.6]} 52... Bxg4
{[%clk 0:00:03.3]} 53. Rd5+ {[%clk 0:00:02.8]} 53... Bf5 {[%clk 0:00:03.5]} 54.
h6 {[%clk 0:00:03.4]} 54... Rf1 {[%clk 0:00:02.1]} 55. Bc2 {[%clk 0:00:03.5]}
55... Ne7 {[%clk 0:00:01.6]} 56. Re5 {[%clk 0:00:03.9]} 56... Rg1+ {[%clk
0:00:01.9]} 57. Kf2 {[%clk 0:00:03.9]} 57... Rc1 {[%clk 0:00:02.8]} 58. Bxf5
{[%clk 0:00:03.3]} 58... Nxf5 {[%clk 0:00:02.8]} 59. h7 {[%clk 0:00:03.8]} 59...
Rc2+ {[%clk 0:00:03.7]} 60. Kf3 {[%clk 0:00:03.4]} 60... Rh2 {[%clk 0:00:04.2]}
61. Ke4 {[%clk 0:00:04.3]} 61... Rh4+ {[%clk 0:00:03.8]} 62. Kd5 {[%clk
0:00:04.7]} 62... Rxh7 {[%clk 0:00:04.7]} 63. c4 {[%clk 0:00:04.9]} 63... Rd7+
{[%clk 0:00:04.5]} 64. Ke6 {[%clk 0:00:04.4]} 64... Re7+ {[%clk 0:00:04.8]} 65.
Kd5 {[%clk 0:00:04.8]} 65... Rxe5+ {[%clk 0:00:03.5]} 66. Kxe5 {[%clk
0:00:05.7]} 66... Kg6 {[%clk 0:00:03.7]} 67. c5 {[%clk 0:00:05.7]} 67... Ne7
{[%clk 0:00:03.7]} 68. Kd6 {[%clk 0:00:05.6]} 68... Nc6 {[%clk 0:00:03.7]} 69.
Kc7 {[%clk 0:00:05.9]} 69... Na5 {[%clk 0:00:03.8]} 70. b4 {[%clk 0:00:06.3]}
70... Nc6 {[%clk 0:00:04.3]} 71. a3 {[%clk 0:00:04]} 71... Kf6 {[%clk
0:00:02.1]} 72. Kxb7 {[%clk 0:00:04]} 72... Nd4 {[%clk 0:00:02.3]} 73. c6 {[%clk
0:00:03.4]} 73... Ke6 {[%clk 0:00:02.4]} 74. c7 {[%clk 0:00:03.8]} 74... Nb5
{[%clk 0:00:03]} 75. c8=Q+ {[%clk 0:00:03.9]} 1-0

[Event "*** Titled Tuesday Blitz"]
[Site "Chess.com"]
[Date "2021.04.27"]
[Round "4"]
[White "Yaryi_sergey"]
[Black "Iball95"]
[Result "0-1"]
[WhiteElo "2432"]
[BlackElo "2622"]
[TimeControl "180+1"]
[EndTime "10:41:20 PDT"]
[Termination "Iball95 won on time"]

1. Nf3 {[%clk 0:02:57.4]} 1... c5 {[%clk 0:02:59]} 2. g3 {[%clk 0:02:57.1]} 2...
g6 {[%clk 0:02:58.8]} 3. e4 {[%clk 0:02:55.8]} 3... Bg7 {[%clk 0:02:58.2]} 4.
Bg2 {[%clk 0:02:55.6]} 4... Nc6 {[%clk 0:02:57.8]} 5. O-O {[%clk 0:02:55.6]}
5... Nf6 {[%clk 0:02:58.2]} 6. Re1 {[%clk 0:02:55]} 6... O-O {[%clk 0:02:58.2]}
7. h3 {[%clk 0:02:54.8]} 7... d5 {[%clk 0:02:45]} 8. exd5 {[%clk 0:02:46.4]}
8... Nxd5 {[%clk 0:02:44.6]} 9. Nc3 {[%clk 0:02:47.3]} 9... Nxc3 {[%clk
0:02:39.2]} 10. dxc3 {[%clk 0:02:46]} 10... Qb6 {[%clk 0:02:20.8]} 11. Qe2
{[%clk 0:02:41.8]} 11... Rd8 {[%clk 0:02:11.3]} 12. Nd2 {[%clk 0:02:40.9]} 12...
Be6 {[%clk 0:02:06.8]} 13. Nc4 {[%clk 0:02:40.5]} 13... Qa6 {[%clk 0:02:06.5]}
14. Ne3 {[%clk 0:02:38.6]} 14... Qxe2 {[%clk 0:02:05.6]} 15. Rxe2 {[%clk
0:02:38.5]} 15... Rac8 {[%clk 0:02:05.8]} 16. Bd2 {[%clk 0:02:37]} 16... b6
{[%clk 0:02:05]} 17. Be1 {[%clk 0:02:36]} 17... Ne5 {[%clk 0:02:03.4]} 18. b3
{[%clk 0:02:28.5]} 18... Kf8 {[%clk 0:02:03]} 19. Rd1 {[%clk 0:02:27.4]} 19...
Rxd1 {[%clk 0:01:48.8]} 20. Nxd1 {[%clk 0:02:26.9]} 20... Rd8 {[%clk 0:01:46.2]}
21. Rd2 {[%clk 0:02:24.5]} 21... Rxd2 {[%clk 0:01:46]} 22. Bxd2 {[%clk
0:02:24.5]} 22... Ke8 {[%clk 0:01:32.8]} 23. Ne3 {[%clk 0:02:21]} 23... Kd7
{[%clk 0:01:31.2]} 24. c4 {[%clk 0:02:17.1]} 24... Nc6 {[%clk 0:01:30]} 25. Kf1
{[%clk 0:02:11]} 25... f5 {[%clk 0:01:27.6]} 26. Nd5 {[%clk 0:02:02.6]} 26...
Bf7 {[%clk 0:01:23.8]} 27. Bc3 {[%clk 0:01:56.5]} 27... Bxc3 {[%clk 0:01:21.6]}
28. Nxc3 {[%clk 0:01:56.2]} 28... Nb4 {[%clk 0:01:20.5]} 29. Ke2 {[%clk
0:01:43.3]} 29... Nxc2 {[%clk 0:01:20.1]} 30. Bd5 {[%clk 0:01:42.8]} 30... e6
{[%clk 0:01:19.2]} 31. Bg2 {[%clk 0:01:41.2]} 31... Nd4+ {[%clk 0:01:18.7]} 32.
Kd3 {[%clk 0:01:39.6]} 32... Kd6 {[%clk 0:01:17.1]} 33. f4 {[%clk 0:01:31.6]}
33... Be8 {[%clk 0:01:17.1]} 34. Ne2 {[%clk 0:01:13.5]} 34... Nxe2 {[%clk
0:01:16.1]} 35. Kxe2 {[%clk 0:01:13.2]} 35... Bc6 {[%clk 0:01:07.2]} 36. Bf1
{[%clk 0:01:12.7]} 36... e5 {[%clk 0:01:05.2]} 37. a3 {[%clk 0:01:07.3]} 37...
Ke6 {[%clk 0:01:03.6]} 38. Ke3 {[%clk 0:01:04.3]} 38... Be4 {[%clk 0:01:03.3]}
39. b4 {[%clk 0:00:58.9]} 39... h6 {[%clk 0:00:44]} 40. b5 {[%clk 0:00:31.9]}
40... Kf6 {[%clk 0:00:40.5]} 41. h4 {[%clk 0:00:30.8]} 41... g5 {[%clk
0:00:39.2]} 42. hxg5+ {[%clk 0:00:25.8]} 42... hxg5 {[%clk 0:00:40.1]} 43. Be2
{[%clk 0:00:24.9]} 43... Bb7 {[%clk 0:00:36.1]} 44. Bd1 {[%clk 0:00:24]} 44...
Bc8 {[%clk 0:00:36]} 45. Be2 {[%clk 0:00:22]} 45... Be6 {[%clk 0:00:36.1]} 46.
Bd3 {[%clk 0:00:21.4]} 46... Bf7 {[%clk 0:00:26.8]} 47. Be2 {[%clk 0:00:20.5]}
47... Bg6 {[%clk 0:00:25.9]} 48. Bd3 {[%clk 0:00:19.9]} 48... Bh5 {[%clk
0:00:25.9]} 49. Bf1 {[%clk 0:00:17.5]} 49... Bd1 {[%clk 0:00:24]} 50. Kd2 {[%clk
0:00:17.1]} 50... Bf3 {[%clk 0:00:24]} 51. Ke3 {[%clk 0:00:16.8]} 51... Be4
{[%clk 0:00:23.2]} 52. Be2 {[%clk 0:00:16.7]} 52... exf4+ {[%clk 0:00:22.6]} 53.
gxf4 {[%clk 0:00:16.6]} 53... Bg2 {[%clk 0:00:19.3]} 54. Kf2 {[%clk 0:00:16.5]}
54... Bb7 {[%clk 0:00:17.6]} 55. Ke3 {[%clk 0:00:16.5]} 55... Bc8 {[%clk
0:00:17.6]} 56. Bd3 {[%clk 0:00:16]} 56... Be6 {[%clk 0:00:17.8]} 57. Be2 {[%clk
0:00:16]} 57... Bf7 {[%clk 0:00:17.8]} 58. Bd3 {[%clk 0:00:15.6]} 58... Kg6
{[%clk 0:00:17.8]} 59. Be2 {[%clk 0:00:15.6]} 59... Kh6 {[%clk 0:00:16.8]} 60.
Bf3 {[%clk 0:00:15.1]} 60... Bh5 {[%clk 0:00:15.8]} 61. Bd5 {[%clk 0:00:14.7]}
61... Bg4 {[%clk 0:00:15.9]} 62. Be6 {[%clk 0:00:14.1]} 62... Kh5 {[%clk
0:00:15.4]} 63. Bd5 {[%clk 0:00:14]} 63... Kh4 {[%clk 0:00:15.3]} 64. Be6 {[%clk
0:00:13.8]} 64... Bh3 {[%clk 0:00:15.2]} 65. Bd5 {[%clk 0:00:13.3]} 65... g4
{[%clk 0:00:12.2]} 66. Kf2 {[%clk 0:00:12.7]} 66... g3+ {[%clk 0:00:12.1]} 67.
Kf3 {[%clk 0:00:12.8]} 67... Bf1 {[%clk 0:00:10.8]} 68. Ke3 {[%clk 0:00:12.6]}
68... g2 {[%clk 0:00:10.4]} 69. Kf2 {[%clk 0:00:12.5]} 69... Kg4 {[%clk
0:00:10.8]} 70. Bf3+ {[%clk 0:00:12.2]} 70... Kxf4 {[%clk 0:00:10.5]} 71. Bxg2
{[%clk 0:00:12.4]} 71... Bxg2 {[%clk 0:00:11.4]} 72. Kxg2 {[%clk 0:00:11.6]}
72... Ke3 {[%clk 0:00:11.7]} 73. Kf1 {[%clk 0:00:11.6]} 73... f4 {[%clk
0:00:11.7]} 74. a4 {[%clk 0:00:11.7]} 74... Kd4 {[%clk 0:00:10.3]} 75. Kf2
{[%clk 0:00:11.9]} 75... Kxc4 {[%clk 0:00:10.4]} 0-1